fUSD/lending_fUSD_20240220
["ID","MTS","AMOUNT","RATE_DAILY","PERIOD"]
[314547523,1708415463739,-500.0,0.00036164,2]
[314547524,1708415463749,-982.13,0.00036164,2]
[314547525,1708415463759,-500.0,0.00036164,2]
[314547526,1708415463768,-500.0,0.00036164,2]
[314547527,1708415463779,-562.03,0.00036164,2]
[314547528,1708415463788,-5808.89,0.00036164,2]
[314547529,1708415463798,-1399.81,0.00036164,2]
[314547530,1708415463811,-840.01,0.00036164,2]
[314547531,1708415463820,-500.0,0.00036164,2]
[314547532,1708415463831,-500.0,0.00036164,2]
[314547533,1708415463841,-500.0,0.00036164,2]
[314547534,1708415463850,-500.0,0.00036164,2]
[314547535,1708415463860,-500.0,0.00036164,2]
[314547536,1708415463869,-500.0,0.00036164,2]
[314547537,1708415463878,-835.78,0.00036164,2]
[314547538,1708415463888,-500.0,0.00036164,2]
[314547539,1708415463899,-500.0,0.00036164,2]
[314547540,1708415463909,-1084.96,0.00036164,2]
[314547541,1708415463918,-500.0,0.00036164,2]
[314547542,1708415463928,-755.76,0.00036164,2]
[314547543,1708415463938,-500.0,0.00036164,2]
[314547544,1708415463947,-768.63,0.00036164,2]
[314547545,1708415463957,-500.0,0.00036164,2]
[314547546,1708415463966,-1004.92,0.00036164,2]
[314547547,1708415463976,-452.16457857,0.00036164,2]
[314547548,1708415463986,-500.0,0.00036164,2]
[314547549,1708415463995,-500.0,0.00036164,2]
[314547550,1708415464005,-500.0,0.00036164,2]
[314547551,1708415464015,-1605.79,0.00036164,2]
[314547552,1708415464025,-719.12,0.00036164,2]
[314547553,1708415464035,-500.0,0.00036164,2]
[314547554,1708415464044,-742.76,0.00036164,2]
[314547555,1708415464054,-2754.18,0.00036164,2]
[314547556,1708415464063,-1904.52,0.00036164,2]
[314547557,1708415464072,-500.0,0.00036164,2]
[314547558,1708415464081,-500.0,0.00036164,2]
[314547559,1708415464090,-500.0,0.00036164,2]
[314547560,1708415464099,-648.25,0.00036164,2]
[314547561,1708415464108,-500.0,0.00036164,2]
[314547562,1708415464117,-500.0,0.00036164,2]
[314547563,1708415464126,-500.0,0.00036164,2]
[314547564,1708415464136,-500.0,0.00036164,2]
[314547565,1708415464145,-991.82,0.00036164,2]
[314547566,1708415464155,-562.0,0.00036164,2]
[314547567,1708415464164,-500.0,0.00036164,2]
[314547568,1708415464174,-710.03,0.00036164,2]
[314547569,1708415464184,-945.73,0.00036164,2]
[314547570,1708415464193,-1348.01,0.00036164,2]
[314547571,1708415464203,-3032.47,0.00036164,2]
[314547572,1708415464212,-500.0,0.00036164,2]
[314547573,1708415464222,-500.0,0.00036164,2]
[314547574,1708415464232,-713.42,0.00036164,2]
[314547575,1708415464241,-500.0,0.00036164,2]
[314547576,1708415464250,-523.89186371,0.00036164,2]
[314547577,1708415464260,-789.14,0.00036164,2]
[314547578,1708415464269,-1250.4,0.00036164,2]
[314547579,1708415464278,-500.0,0.00036164,2]
[314547580,1708415464288,-500.0,0.00036164,2]
[314547581,1708415464297,-500.0,0.00036164,2]
[314547582,1708415464306,-1585.67,0.00036164,2]
[314547583,1708415464316,-694.07,0.00036164,2]
[314547584,1708415464325,-1120.55,0.00036164,2]
[314547585,1708415464334,-2905.22,0.00036164,2]
[314547586,1708415464343,-724.83,0.00036164,2]
[314547587,1708415464353,-500.0,0.00036164,2]
[314547588,1708415464362,-500.0,0.00036164,2]
[314547589,1708415464371,-500.0,0.00036164,2]
[314547590,1708415464380,-500.0,0.00036164,2]
[314547591,1708415464389,-500.0,0.00036164,2]
[314547592,1708415464398,-500.0,0.00036164,2]
[314547593,1708415464408,-949.85,0.00036164,2]
[314547594,1708415464417,-1209.71,0.00036164,2]
[314547595,1708415464426,-500.0,0.00036164,2]
[314547596,1708415464435,-500.0,0.00036164,2]
[314547597,1708415464444,-500.0,0.00036164,2]
[314547598,1708415464453,-500.0,0.00036164,2]
[314547599,1708415464463,-500.0,0.00036164,2]
[314547600,1708415464472,-500.0,0.00036164,2]
[314547601,1708415464481,-500.0,0.00036164,2]
[314547602,1708415464490,-4286.51,0.00036164,2]
[314547603,1708415464499,-523.26484367,0.00036164,2]
[314547604,1708415464509,-1391.51,0.00036164,2]
[314547605,1708415464518,-2640.04,0.00036164,2]
[314547606,1708415464528,-500.0,0.00036164,2]
[314547607,1708415464538,-500.0,0.00036164,2]
[314547608,1708415464547,-500.0,0.00036164,2]
[314547609,1708415464556,-910.07,0.00036164,2]
[314547610,1708415464565,-4673.5,0.00036164,2]
[314547611,1708415464574,-500.0,0.00036164,2]
[314547612,1708415464584,-500.0,0.00036164,2]
[314547613,1708415464593,-500.0,0.00036164,2]
[314547614,1708415464602,-500.0,0.00036164,2]
[314547615,1708415464612,-500.0,0.00036164,2]
[314547616,1708415464622,-708.27,0.00036164,2]
[314547617,1708415464631,-500.0,0.00036164,2]
[314547618,1708415464640,-1299.51,0.00036164,2]
[314547619,1708415464649,-500.0,0.00036164,2]
[314547620,1708415464659,-964.39,0.00036164,2]
[314547621,1708415464668,-880.35,0.00036164,2]
[314547622,1708415464678,-2540.16,0.00036164,2]
[314547623,1708415464687,-500.0,0.00036164,2]
[314547624,1708415464697,-500.0,0.00036164,2]
[314547625,1708415464706,-500.0,0.00036164,2]
[314547626,1708415464715,-579.80124984,0.00036164,2]
[314547627,1708415464725,-1259.77,0.00036164,2]
[314547628,1708415464734,-500.0,0.00036164,2]
[314547629,1708415464743,-500.0,0.00036164,2]
[314547630,1708415464753,-1181.32,0.00036164,2]
[314547631,1708415464762,-331.18295594,0.00036164,2]
[314547632,1708415464771,-1252.35,0.00036164,2]
[314547633,1708415464781,-500.0,0.00036164,2]
[314547634,1708415464790,-500.0,0.00036164,2]
[314547635,1708415464799,-500.0,0.00036164,2]
[314547636,1708415464809,-500.0,0.00036164,2]
[314547637,1708415464818,-500.0,0.00036164,2]
[314547638,1708415464829,-500.0,0.00036164,2]
[314547639,1708415464838,-500.0,0.00036164,2]
[314547640,1708415464847,-7102.5,0.00036164,2]
[314547641,1708415464856,-791.47,0.00036164,2]
[314547642,1708415464865,-500.0,0.00036164,2]
[314547643,1708415464874,-500.0,0.00036164,2]
[314547644,1708415464883,-500.0,0.00036164,2]
[314547645,1708415464892,-500.0,0.00036164,2]
[314547646,1708415464902,-500.0,0.00036164,2]
[314547647,1708415464912,-500.0,0.00036164,2]
[314547648,1708415464921,-2308.25,0.00036164,2]
[314547649,1708415464930,-841.49,0.00036164,2]
[314547650,1708415464940,-500.0,0.00036164,2]
[314547651,1708415464948,-500.0,0.00036164,2]
[314547652,1708415464958,-671.46,0.00036164,2]
[314547653,1708415464967,-500.0,0.00036164,2]
[314547654,1708415464976,-500.0,0.00036164,2]
[314547655,1708415464985,-812.08,0.00036164,2]
[314547656,1708415464994,-676.64,0.00036164,2]
[314547657,1708415465003,-500.0,0.00036164,2]
[314547658,1708415465012,-500.0,0.00036164,2]
[314547659,1708415465021,-500.0,0.00036164,2]
[314547660,1708415465032,-226.26888901,0.00036164,2]
[314547661,1708415465041,-500.0,0.00036164,2]
[314547662,1708415465050,-500.0,0.00036164,2]
[314547663,1708415465061,-1899.33,0.00036164,2]
[314547664,1708415465070,-500.0,0.00036164,2]
[314547665,1708415465080,-771.29,0.00036164,2]
[314547666,1708415465090,-1169.09,0.00036164,2]
[314547667,1708415465101,-515.45,0.00036164,2]
[314547668,1708415465111,-704.4,0.00036164,2]
[314547669,1708415465121,-500.0,0.00036164,2]
[314547670,1708415465131,-500.0,0.00036164,2]
[314547671,1708415465141,-500.0,0.00036164,2]
[314547672,1708415465151,-500.0,0.00036164,2]
[314547673,1708415465160,-500.0,0.00036164,2]
[314547674,1708415465170,-1111.74,0.00036164,2]
[314547675,1708415465180,-500.0,0.00036164,2]
[314547676,1708415465190,-558.3,0.00036164,2]
[314547677,1708415465200,-500.0,0.00036164,2]
[314547678,1708415465210,-500.0,0.00036164,2]
[314547679,1708415465220,-654.52,0.00036164,2]
[314547680,1708415465230,-500.0,0.00036164,2]
[314547681,1708415465240,-500.0,0.00036164,2]
[314547682,1708415465250,-500.0,0.00036164,2]
[314547683,1708415465260,-967.42,0.00036164,2]
[314547684,1708415465270,-168.32688411,0.00036164,2]
[314547685,1708415465280,-500.0,0.00036164,2]
[314547686,1708415465291,-558.77,0.00036164,2]
[314547687,1708415465300,-500.0,0.00036164,2]
[314547688,1708415465310,-500.0,0.00036164,2]
[314547689,1708415465320,-1613.76,0.00036164,2]
[314547690,1708415465330,-500.0,0.00036164,2]
[314547691,1708415465340,-735.47,0.00036164,2]
[314547692,1708415465350,-500.0,0.00036164,2]
[314547693,1708415465361,-500.0,0.00036164,2]
[314547694,1708415465371,-500.0,0.00036164,2]
[314547695,1708415465382,-500.0,0.00036164,2]
[314547696,1708415465392,-575.34877173,0.00036164,2]
[314547697,1708415465402,-500.0,0.00036164,2]
[314547698,1708415465413,-177.58,0.00036172,2]
[314547699,1708415465423,-150.0,0.00036179,2]
[314547700,1708415465433,-150.0,0.00036181,2]
[314547701,1708415465442,-150.0,0.00036189,2]
[314547702,1708415465453,-150.0,0.0003619,2]
[314547703,1708415465462,-150.0,0.00036199,2]
[314547704,1708415465471,-150.0,0.00036214,2]
[314547705,1708415465481,-150.0,0.00036216,2]
[314547706,1708415465492,-1500.0,0.00036232,2]
[314547707,1708415465502,-150.0,0.00036244,2]
[314547708,1708415465512,-992.64,0.00036245,2]
[314547709,1708415465522,-150.0,0.0003626,2]
[314547710,1708415465531,-150.0,0.0003626,2]
[314547711,1708415465541,-1500.0,0.00036266,2]
[314547712,1708415465551,-150.0,0.00036282,2]
[314547713,1708415465561,-161.26,0.00036285,2]
[314547714,1708415465570,-150.0,0.00036287,2]
[314547715,1708415465579,-150.0,0.00036297,2]
[314547716,1708415465589,-20554.0,0.000363,3]
[314547717,1708415465599,-2977.0,0.000363,3]
[314547718,1708415465609,-151.74142693,0.0003631,2]
[314547719,1708415465619,-300.0,0.00036312,2]
[314547720,1708415465630,-150.0,0.00036314,2]
[314547721,1708415465640,-150.0,0.00036322,2]
[314547722,1708415465650,-150.0,0.00036324,2]
[314547723,1708415465660,-300.0,0.00036326,2]
[314547724,1708415465670,-150.0,0.0003633,2]
[314547725,1708415465680,-1500.0,0.00036345,2]
[314547726,1708415465690,-150.0,0.00036346,2]
[314547727,1708415465701,-300.0,0.00036346,2]
[314547728,1708415465711,-150.0,0.00036357,2]
[314547729,1708415465721,-150.0,0.00036359,2]
[314547730,1708415465730,-150.0,0.00036362,2]
[314547731,1708415465740,-150.0,0.00036362,2]
[314547732,1708415465750,-1543.08324433,0.00036366,2]
[314547733,1708415465760,-1500.0,0.00036374,2]
[314547734,1708415465769,-119848.678155,0.00036389,2]
[314547735,1708415465779,-154.45558695,0.00036392,2]
[314547736,1708415465790,-119848.678155,0.00036399,2]
[314547737,1708415465800,-1500.0,0.000364,22]
[314547738,1708415465811,-300.0,0.00036408,2]
[314547739,1708415465820,-175.78705775,0.00036418,2]
[314547740,1708415465833,-151.72942358,0.00036418,2]
[314547741,1708415465843,-210.0,0.00036418,3]
[314547742,1708415465855,-500.0,0.00036438,2]
[314547743,1708415465864,-500.0,0.00036438,2]
[314547744,1708415465875,-500.0,0.00036438,2]
[314547745,1708415465885,-333.60974518,0.00036438,2]
[314547746,1708415465895,-570.92,0.00036438,2]
[314547747,1708415465906,-500.0,0.00036438,2]
[314547748,1708415465916,-500.0,0.00036438,2]
[314547749,1708415465927,-500.0,0.00036438,2]
[314547750,1708415465937,-500.0,0.00036438,2]
[314547751,1708415465946,-500.0,0.00036438,2]
[314547752,1708415465956,-500.0,0.00036438,2]
[314547753,1708415465966,-500.0,0.00036438,2]
[314547754,1708415465975,-500.0,0.00036438,2]
[314547755,1708415465985,-500.0,0.00036438,2]
[314547756,1708415465995,-475.5631257,0.00036438,2]
[314547757,1708415466005,-500.0,0.00036438,2]
[314547758,1708415466014,-500.0,0.00036438,2]
[314547759,1708415466024,-500.0,0.00036438,2]
[314547760,1708415466034,-500.0,0.00036438,2]
[314547761,1708415466045,-500.0,0.00036438,2]
[314547762,1708415466054,-500.0,0.00036438,2]
[314547763,1708415466065,-515.73125752,0.00036438,2]
[314547764,1708415466075,-1116.74832906,0.00036438,2]
[314547765,1708415466084,-458.83496234,0.00036438,2]
[314547766,1708415466095,-500.0,0.00036438,2]
[314547767,1708415466105,-500.0,0.00036438,2]
[314547768,1708415466114,-500.0,0.00036438,2]
[314547769,1708415466123,-500.0,0.00036438,2]
[314547770,1708415466133,-500.0,0.00036438,2]
[314547771,1708415466143,-500.0,0.00036438,2]
[314547772,1708415466152,-159.06237136,0.00036438,2]
[314547773,1708415466162,-500.0,0.00036438,2]
[314547774,1708415466345,-500.0,0.00036438,2]
[314547775,1708415466356,-500.0,0.00036438,2]
[314547776,1708415466367,-500.0,0.00036438,2]
[314547777,1708415466378,-500.0,0.00036438,2]
[314547778,1708415466388,-500.0,0.00036438,2]
[314547779,1708415466398,-500.0,0.00036438,2]
[314547780,1708415466408,-500.0,0.00036438,2]
[314547781,1708415466418,-500.0,0.00036438,2]
[314547782,1708415466428,-500.0,0.00036438,2]
[314547783,1708415466438,-500.0,0.00036438,2]
[314547784,1708415466448,-500.0,0.00036438,2]
[314547785,1708415466458,-500.0,0.00036438,2]
[314547786,1708415466470,-500.0,0.00036438,2]
[314547787,1708415466480,-500.0,0.00036438,2]
[314547788,1708415466490,-500.0,0.00036438,2]
[314547789,1708415466501,-500.0,0.00036438,2]
[314547790,1708415466511,-510.17142552,0.00036438,2]
[314547791,1708415466521,-500.0,0.00036438,2]
[314547792,1708415466531,-500.0,0.00036438,2]
[314547793,1708415466543,-500.0,0.00036438,2]
[314547794,1708415466553,-500.0,0.00036438,2]
[314547795,1708415466562,-500.0,0.00036438,2]
[314547796,1708415466572,-500.0,0.00036438,2]
[314547797,1708415466582,-503.23,0.00036438,2]
[314547798,1708415466592,-500.0,0.00036438,2]
[314547799,1708415466603,-500.0,0.00036438,2]
[314547800,1708415466613,-500.0,0.00036438,2]
[314547801,1708415466623,-500.0,0.00036438,2]
[314547802,1708415466633,-500.0,0.00036438,2]
[314547803,1708415466642,-500.0,0.00036438,2]
[314547804,1708415466651,-500.0,0.00036438,2]
[314547805,1708415466661,-500.0,0.00036438,2]
[314547806,1708415466671,-500.0,0.00036438,2]
[314547807,1708415466681,-500.0,0.00036438,2]
[314547808,1708415466691,-500.0,0.00036438,2]
[314547809,1708415466701,-500.0,0.00036438,2]
[314547810,1708415466711,-500.0,0.00036438,2]
[314547811,1708415466721,-500.0,0.00036438,2]
[314547812,1708415466731,-500.0,0.00036438,2]
[314547813,1708415466740,-500.0,0.00036438,2]
[314547814,1708415466749,-500.0,0.00036438,2]
[314547815,1708415466759,-500.0,0.00036438,2]
[314547816,1708415466769,-500.0,0.00036438,2]
[314547817,1708415466778,-500.0,0.00036438,2]
[314547818,1708415466788,-500.0,0.00036438,2]
[314547819,1708415466797,-500.0,0.00036438,2]
[314547820,1708415466808,-500.0,0.00036438,2]
[314547821,1708415466817,-500.0,0.00036438,2]
[314547822,1708415466828,-500.0,0.00036438,2]
[314547823,1708415466840,-500.0,0.00036438,2]
[314547824,1708415466849,-500.0,0.00036438,2]
[314547825,1708415466863,-211.4005616,0.00036438,2]
[314547826,1708415466873,-500.0,0.00036438,2]
[314547827,1708415466887,-500.0,0.00036438,2]
[314547828,1708415466898,-500.0,0.00036438,2]
[314547829,1708415466910,-500.0,0.00036438,2]
[314547830,1708415466923,-500.0,0.00036438,2]
[314547831,1708415466933,-500.0,0.00036438,2]
[314547832,1708415466943,-480.87767827,0.00036438,2]
[314547833,1708415466953,-500.0,0.00036438,2]
[314547834,1708415466963,-500.0,0.00036438,2]
[314547835,1708415466972,-1228.86,0.00036438,2]
[314547836,1708415466989,-500.0,0.00036438,2]
[314547837,1708415466998,-500.0,0.00036438,2]
[314547838,1708415467008,-671.55,0.00036438,2]
[314547839,1708415467017,-500.0,0.00036438,2]
[314547840,1708415467026,-500.0,0.00036438,2]
[314547841,1708415467036,-500.0,0.00036438,2]
[314547842,1708415467047,-500.0,0.00036438,2]
[314547843,1708415467057,-500.0,0.00036438,2]
[314547844,1708415467066,-500.0,0.00036438,2]
[314547845,1708415467075,-500.0,0.00036438,2]
[314547846,1708415467084,-500.0,0.00036438,2]
[314547847,1708415467094,-500.0,0.00036438,2]
[314547848,1708415467103,-500.0,0.00036438,2]
[314547849,1708415467113,-500.0,0.00036438,2]
[314547850,1708415467122,-500.0,0.00036438,2]
[314547851,1708415467131,-500.0,0.00036438,2]
[314547852,1708415467141,-500.0,0.00036438,2]
[314547853,1708415467150,-500.0,0.00036438,2]
[314547854,1708415467160,-500.0,0.00036438,2]
[314547855,1708415467169,-500.0,0.00036438,2]
[314547856,1708415467179,-500.0,0.00036438,2]
[314547857,1708415467189,-500.0,0.00036438,2]
[314547858,1708415467199,-500.0,0.00036438,2]
[314547859,1708415467208,-539.76,0.00036438,2]
[314547860,1708415467217,-500.0,0.00036438,2]
[314547861,1708415467227,-500.0,0.00036438,2]
[314547862,1708415467237,-500.0,0.00036438,2]
[314547863,1708415467254,-500.0,0.00036438,2]
[314547864,1708415467268,-500.0,0.00036438,2]
[314547865,1708415467278,-500.0,0.00036438,2]
[314547866,1708415467288,-500.0,0.00036438,2]
[314547867,1708415467298,-500.0,0.00036438,2]
[314547868,1708415467312,-500.0,0.00036438,2]
[314547869,1708415467321,-500.0,0.00036438,2]
[314547870,1708415467334,-500.0,0.00036438,2]
[314547871,1708415467344,-500.0,0.00036438,2]
[314547872,1708415467366,-500.0,0.00036438,2]
[314547873,1708415467376,-500.0,0.00036438,2]
[314547874,1708415467386,-256.59506872,0.00036438,2]
[314547875,1708415467397,-500.0,0.00036438,2]
[314547876,1708415467406,-500.0,0.00036438,2]
[314547877,1708415467416,-500.0,0.00036438,2]
[314547878,1708415467426,-500.0,0.00036438,2]
[314547879,1708415467436,-500.0,0.00036438,2]
[314547880,1708415467445,-500.0,0.00036438,2]
[314547881,1708415467455,-500.0,0.00036438,2]
[314547882,1708415467464,-500.0,0.00036438,2]
[314547883,1708415467480,-500.0,0.00036438,2]
[314547884,1708415467490,-500.0,0.00036438,2]
[314547885,1708415467516,-500.0,0.00036438,2]
[314547886,1708415467527,-500.0,0.00036438,2]
[314547887,1708415467536,-500.0,0.00036438,2]
[314547888,1708415467547,-500.0,0.00036438,2]
[314547889,1708415467556,-500.0,0.00036438,2]
[314547890,1708415467565,-500.0,0.00036438,2]
[314547891,1708415467574,-500.0,0.00036438,2]
[314547892,1708415467583,-500.0,0.00036438,2]
[314547893,1708415467593,-500.0,0.00036438,2]
[314547894,1708415467603,-500.0,0.00036438,2]
[314547895,1708415467613,-500.0,0.00036438,2]
[314547896,1708415467622,-500.0,0.00036438,2]
[314547897,1708415467632,-500.0,0.00036438,2]
[314547898,1708415467643,-500.0,0.00036438,2]
[314547899,1708415467652,-500.0,0.00036438,2]
[314547900,1708415467662,-500.0,0.00036438,2]
[314547901,1708415467671,-500.0,0.00036438,2]
[314547902,1708415467681,-500.0,0.00036438,2]
[314547903,1708415467691,-500.0,0.00036438,2]
[314547904,1708415467700,-500.0,0.00036438,2]
[314547905,1708415467710,-500.0,0.00036438,2]
[314547906,1708415467720,-500.0,0.00036438,2]
[314547907,1708415467731,-500.0,0.00036438,2]
[314547908,1708415467742,-500.0,0.00036438,2]
[314547909,1708415467752,-500.0,0.00036438,2]
[314547910,1708415467762,-500.0,0.00036438,2]
[314547911,1708415467772,-500.0,0.00036438,2]
[314547912,1708415467783,-500.0,0.00036438,2]
[314547913,1708415467793,-500.0,0.00036438,2]
[314547914,1708415467804,-500.0,0.00036438,2]
[314547915,1708415467815,-500.0,0.00036438,2]
[314547916,1708415467825,-500.0,0.00036438,2]
[314547917,1708415467836,-500.0,0.00036438,2]
[314547918,1708415467846,-500.0,0.00036438,2]
[314547919,1708415467857,-500.0,0.00036438,2]
[314547920,1708415467867,-500.0,0.00036438,2]
[314547921,1708415467876,-500.0,0.00036438,2]
[314547922,1708415467886,-500.0,0.00036438,2]
[314547923,1708415467895,-661.84,0.00036438,2]
[314547924,1708415467906,-500.0,0.00036438,2]
[314547925,1708415467915,-500.0,0.00036438,2]
[314547926,1708415467925,-500.0,0.00036438,2]
[314547927,1708415467934,-500.0,0.00036438,2]
[314547928,1708415467944,-500.0,0.00036438,2]
[314547929,1708415467955,-500.0,0.00036438,2]
[314547930,1708415467964,-500.0,0.00036438,2]
[314547931,1708415467974,-500.0,0.00036438,2]
[314547932,1708415467985,-500.0,0.00036438,2]
[314547933,1708415467995,-500.0,0.00036438,2]
[314547934,1708415468006,-500.0,0.00036438,2]
[314547935,1708415468017,-500.0,0.00036438,2]
[314547936,1708415468028,-725.64,0.00036438,2]
[314547937,1708415468039,-500.0,0.00036438,2]
[314547938,1708415468049,-500.0,0.00036438,2]
[314547939,1708415468059,-500.0,0.00036438,2]
[314547940,1708415468069,-150.0,0.00036438,2]
[314547941,1708415468080,-500.0,0.00036438,2]
[314547942,1708415468090,-500.0,0.00036438,2]
[314547943,1708415468099,-500.0,0.00036438,2]
[314547944,1708415468109,-500.0,0.00036438,2]
[314547945,1708415468120,-500.0,0.00036438,2]
[314547946,1708415468129,-500.0,0.00036438,2]
[314547947,1708415468139,-500.0,0.00036438,2]
[314547948,1708415468149,-500.0,0.00036438,2]
[314547949,1708415468159,-500.0,0.00036438,2]
[314547950,1708415468168,-500.0,0.00036438,2]
[314547951,1708415468178,-500.0,0.00036438,2]
[314547952,1708415468188,-500.0,0.00036438,2]
[314547953,1708415468198,-500.0,0.00036438,2]
[314547954,1708415468208,-500.0,0.00036438,2]
[314547955,1708415468218,-701.22,0.00036438,2]
[314547956,1708415468228,-500.0,0.00036438,2]
[314547957,1708415468238,-500.0,0.00036438,2]
[314547958,1708415468248,-500.0,0.00036438,2]
[314547959,1708415468258,-500.0,0.00036438,2]
[314547960,1708415468268,-500.0,0.00036438,2]
[314547961,1708415468279,-500.0,0.00036438,2]
[314547962,1708415468290,-500.0,0.00036438,2]
[314547963,1708415468300,-500.0,0.00036438,2]
[314547964,1708415468311,-500.0,0.00036438,2]
[314547965,1708415468320,-505.85,0.00036438,2]
[314547966,1708415468330,-500.0,0.00036438,2]
[314547967,1708415468341,-500.0,0.00036438,2]
[314547968,1708415468351,-500.0,0.00036438,2]
[314547969,1708415468361,-170.5625335,0.00036438,2]
[314547970,1708415468370,-500.0,0.00036438,2]
[314547971,1708415468380,-508.04624203,0.00036438,2]
[314547972,1708415468389,-500.0,0.00036438,2]
[314547973,1708415468398,-500.0,0.00036438,2]
[314547974,1708415468407,-500.0,0.00036438,2]
[314547975,1708415468416,-500.0,0.00036438,2]
[314547976,1708415468425,-500.0,0.00036438,2]
[314547977,1708415468434,-1465.63,0.00036438,2]
[314547978,1708415468444,-500.0,0.00036438,2]
[314547979,1708415468454,-500.0,0.00036438,2]
[314547980,1708415468463,-500.0,0.00036438,2]
[314547981,1708415468472,-500.0,0.00036438,2]
[314547982,1708415468481,-500.0,0.00036438,2]
[314547983,1708415468491,-500.0,0.00036438,2]
[314547984,1708415468501,-500.0,0.00036438,2]
[314547985,1708415468510,-1592.12,0.00036438,2]
[314547986,1708415468520,-998.55,0.00036438,2]
[314547987,1708415468529,-500.0,0.00036438,2]
[314547988,1708415468538,-500.0,0.00036438,2]
[314547989,1708415468548,-500.0,0.00036438,2]
[314547990,1708415468558,-500.0,0.00036438,2]
[314547991,1708415468567,-500.0,0.00036438,2]
[314547992,1708415468576,-1049.56,0.00036438,2]
[314547993,1708415468585,-559.92443425,0.00036438,2]
[314547994,1708415468594,-500.0,0.00036438,2]
[314547995,1708415468605,-500.0,0.00036438,2]
[314547996,1708415468615,-500.0,0.00036438,2]
[314547997,1708415468624,-500.0,0.00036438,2]
[314547998,1708415468634,-500.0,0.00036438,2]
[314547999,1708415468644,-436.39488142,0.00036438,2]
[314548000,1708415468653,-500.0,0.00036438,2]
[314548001,1708415468664,-707.3,0.00036438,2]
[314548002,1708415468674,-496.13529642,0.00036438,2]
[314548003,1708415468689,-532.62,0.00036438,2]
[314548004,1708415468699,-500.0,0.00036438,2]
[314548005,1708415468710,-500.0,0.00036438,2]
[314548006,1708415468721,-500.0,0.00036438,2]
[314548007,1708415468731,-500.0,0.00036438,2]
[314548008,1708415468741,-500.0,0.00036438,2]
[314548009,1708415468751,-500.0,0.00036438,2]
[314548010,1708415468761,-571.93,0.00036438,2]
[314548011,1708415468771,-500.0,0.00036438,2]
[314548012,1708415468780,-500.0,0.00036438,2]
[314548013,1708415468792,-500.0,0.00036438,2]
[314548014,1708415468801,-500.0,0.00036438,2]
[314548015,1708415468824,-500.0,0.00036438,2]
[314548016,1708415468834,-500.0,0.00036438,2]
[314548017,1708415468843,-500.0,0.00036438,2]
[314548018,1708415468855,-3021.59,0.00036438,2]
[314548019,1708415468865,-500.0,0.00036438,2]
[314548020,1708415468875,-296.93718188,0.00036438,2]
[314548021,1708415468885,-865.2,0.00036438,2]
[314548022,1708415468894,-500.0,0.00036438,2]